bitfinex-derivatives/quotes_SOLF0:USTF0_20241218
["timestamp","ask_amount","ask_price","bid_price","bid_amount"]
[1734553838219,37.27540642,210.06,209.87,37.27540642]
[1734553839126,2.3818,210.04,209.88,2.3835]
[1734553839326,3.8,210.03,209.88,2.3835]
[1734553839831,3.8,210.03,209.81,3.1809]
[1734553839832,37.27540642,210.02,209.83,37.27540642]
[1734553840029,3.8,210.03,209.87,37.27540642]
[1734553840224,37.27540642,210.02,209.83,37.27540642]
[1734553841028,3.8,210.03,209.91,37.27540642]
[1734553841229,3.8,210.03,209.87,37.27540642]
[1734553841926,3.8,210.03,209.91,37.27540642]
[1734553842129,3.8,210.03,209.95,37.27540642]
[1734553842325,3.8,210.03,209.88,37.27540642]
[1734553842326,3.8,210.03,209.94,2.3828]
[1734553842526,3.8,210.03,209.87,37.27540642]
[1734553842925,37.27540642,210.02,209.83,37.27540642]
[1734553843125,37.27540642,209.98,209.77,37.27540642]
[1734553843321,3.0217,209.97,209.77,37.27540642]
[1734553843526,3.0217,209.97,209.82,2.3842]
[1734553843731,3.0217,209.97,209.81,37.27540642]
[1734553844132,3.0217,209.97,209.82,2.3842]
[1734553844532,37.27540642,209.94,209.77,37.27540642]
[1734553844726,9.1323,209.97,209.77,37.27540642]
[1734553844922,37.27540642,209.95,209.74,37.27540642]
[1734553845228,2.3837,209.87,209.72,2.3854]
[1734553845433,37.27540642,209.91,209.7,173.55743611]
[1734553846032,37.27540642,209.87,209.7,37.27540642]
[1734553846231,37.27540642,209.87,209.66,37.27540642]
[1734553846432,39.66020642,209.78,209.62,39.66190642]
[1734553846730,37.27540642,209.82,209.62,37.27540642]
[1734553846928,37.27540642,209.88,209.66,37.27540642]
[1734553847130,37.27540642,209.84,209.62,37.27540642]
[1734553847331,37.27540642,209.88,209.7,37.27540642]
[1734553847532,37.27540642,209.88,209.74,2.3851]
[1734553847732,37.27540642,209.88,209.7,37.27540642]
[1734553847931,9.1323,209.97,209.78,37.27540642]
[1734553848235,37.27540642,209.85,209.66,37.27540642]
[1734553848434,37.27540642,209.81,209.58,37.27540642]
[1734553848736,5.9866,209.8,209.62,37.27540642]
[1734553848939,37.27540642,209.73,209.54,91.73540642]
[1734553849535,37.27540642,209.69,209.54,54.46]
[1734553849743,37.27540642,209.69,209.6,2.3867]
[1734553850134,37.27540642,209.74,209.55,37.27540642]
[1734553850533,2.9673,209.79,209.59,37.27540642]
[1734553850734,3.0354,209.8,209.63,37.27540642]
[1734553851233,3.0354,209.8,209.69,2.3857]
[1734553851433,3.0354,209.8,209.59,37.27540642]
[1734553851640,37.27540642,209.77,209.59,37.27540642]
[1734553852228,3.0354,209.8,209.63,37.27540642]
[1734553852944,3.0354,209.8,209.67,37.27540642]
[1734553853134,37.27540642,209.89,209.71,37.27540642]
[1734553853331,37.27540642,209.77,209.59,37.27540642]
[1734553853530,37.27540642,209.73,209.55,37.27540642]
[1734553853833,37.27540642,209.69,209.51,37.27540642]
[1734553854034,37.27540642,209.65,209.45,38.23028825]
[1734553854237,37.27540642,209.65,209.46,0.87698019]
[1734553854434,3.2203,209.72,209.53,37.27540642]
[1734553854935,37.27540642,209.85,209.55,37.27540642]
[1734553855141,37.27540642,209.85,209.64,37.27540642]
[1734553855334,5.9542,209.87,209.64,37.27540642]
[1734553855534,37.27540642,209.82,209.6,37.27540642]
[1734553855736,37.27540642,209.82,209.64,37.27540642]
[1734553856634,37.27540642,209.82,209.76,2.3849]
[1734553856833,37.27540642,209.77,209.55,37.27540642]
[1734553857032,37.27540642,209.7,209.54,0.95447169]
[1734553857239,2.9871,209.69,209.54,0.95447169]
[1734553857535,3.81,209.68,209.63,37.27540642]
[1734553857836,2.9871,209.86,209.67,37.27540642]
[1734553858036,2.9871,209.86,209.83,2.3841]
[1734553858231,2.9871,209.86,209.72,37.27540642]
[1734553858437,2.9871,209.86,209.76,37.27540642]
[1734553858737,2.9871,209.86,209.84,2.384]
[1734553859230,3.81,209.87,209.86,2.3838]
[1734553860443,0.46369999,209.87,209.86,2.3838]
[1734553860833,0.46369999,209.87,209.83,2.3841]
[1734553861035,0.46369999,209.87,209.72,37.27540642]
[1734553861239,0.46369999,209.87,209.76,37.27540642]
[1734553861434,0.46369999,209.87,209.85,2.3839]
[1734553862235,0.46369999,209.87,209.76,37.27540642]
[1734553862440,37.73910641,209.87,209.57,4.7742]
[1734553862641,37.73910641,209.87,209.56,55.735]
[1734553862642,37.27540642,209.83,209.62,37.27540642]
[1734553862836,37.27540642,209.75,209.58,37.27540642]
[1734553863042,37.27540642,209.75,209.54,38.22987811]
[1734553863242,14.25,209.85,209.54,0.95447169]
[1734553863449,37.27540642,209.68,209.55,2.3873]
[1734553863745,37.27540642,209.68,209.5,37.27540642]
[1734553863939,37.27540642,209.72,209.62,2.3865]
[1734553864141,37.27540642,209.68,209.5,37.27540642]
[1734553864546,3.0153,209.71,209.63,2.3864]
[1734553864745,3.0153,209.71,209.5,37.27540642]
[1734553864946,37.27540642,209.68,209.5,37.27540642]
[1734553865147,37.27540642,209.68,209.46,91.77540642]
[1734553865446,37.27540642,209.68,209.52,5.74321903]
[1734553865647,37.27540642,209.64,209.52,5.74321903]
[1734553865847,37.27540642,209.64,209.42,37.27540642]
[1734553866240,3.81,209.63,209.5,5.61739161]
[1734553866441,37.27540642,209.56,209.38,37.27540642]
[1734553866742,37.27540642,209.52,209.43,2.3886]
[1734553867047,9.41478628,209.63,209.41,5.81563901]
[1734553867048,37.27540642,209.6,209.41,5.81563901]
[1734553867238,37.27540642,209.56,209.42,2.3888]
[1734553867445,37.27540642,209.56,209.41,5.81563901]
[1734553867638,3.1255,209.59,209.41,43.09104543]
[1734553867844,37.27540642,209.57,209.41,5.81563901]
[1734553868043,37.27540642,209.48,209.29,37.27540642]
[1734553868242,37.27540642,209.48,209.36,5.60306738]
[1734553868439,37.27540642,209.53,209.36,5.60306738]
[1734553868645,37.27540642,209.45,209.25,37.27540642]
[1734553868849,37.27540642,209.41,209.21,37.27540642]
[1734553869049,37.27540642,209.41,209.29,5.71473896]
[1734553869251,37.27540642,209.44,209.33,2.3898]
[1734553869443,3.1255,209.43,209.29,5.71473896]
[1734553869644,37.27540642,209.39,209.21,37.27540642]
[1734553869947,37.27540642,209.39,209.17,37.27540642]
[1734553870148,3.1255,209.43,209.27,5.72277011]
[1734553870548,5.69466108,209.51,209.29,37.27540642]
[1734553870747,37.27540642,209.53,209.33,37.27540642]
[1734553870942,37.27540642,209.61,209.41,37.27540642]
[1734553871344,37.27540642,209.61,209.33,37.27540642]
[1734553871345,2.93,209.62,209.45,37.27540642]
[1734553871542,2.93,209.62,209.41,37.27540642]
[1734553871747,37.27540642,209.54,209.37,37.27540642]
[1734553872041,37.27540642,209.45,209.15,54.56]
[1734553872248,37.27540642,209.41,209.23,0.87784644]
[1734553872449,37.27540642,209.45,209.16,1.3298]
[1734553872648,37.27540642,209.45,209.32,5.66664847]
[1734553872848,37.27540642,209.41,209.32,5.66664847]
[1734553873050,37.27540642,209.41,209.37,2.3893]
[1734553873252,37.27540642,209.41,209.32,5.66664847]
[1734553873753,37.27540642,209.42,209.32,5.66664847]
[1734553874050,37.27540642,209.38,209.29,5.83926877]
[1734553874351,5.9722,209.48,209.29,5.83926877]
[1734553874352,3.82,209.37,209.29,5.83926877]
[1734553874747,3.0351,209.48,209.3,37.27540642]
[1734553875047,2.9371,209.62,209.34,37.27540642]
[1734553875249,3.81,209.63,209.46,37.27540642]
[1734553875647,37.27540642,209.62,209.45,5.61315015]
[1734553875848,3.81,209.61,209.45,5.61315015]
[1734553876650,3.81,209.61,209.46,37.27540642]
[1734553876955,3.81,209.61,209.59,2.3868]
[1734553877154,3.81,209.63,209.5,37.27540642]
[1734553877352,3.81,209.63,209.47,3.0923]
[1734553877852,37.27540642,209.57,209.56,5.83772199]
[1734553878054,37.27540642,209.57,209.43,5.76553818]
[1734553878354,3.81,209.63,209.47,1.0]
[1734553878554,0.91,209.56,209.55,2.3873]
[1734553878746,0.91,209.56,209.47,37.27540642]
[1734553878747,3.81,209.63,209.47,37.27540642]
[1734553879057,3.81,209.63,209.51,2.3877]
[1734553879248,3.81,209.63,209.39,37.27540642]
[1734553879452,37.27540642,209.61,209.5,5.6312393]
[1734553879653,3.81,209.63,209.5,5.6312393]
[1734553879855,3.81,209.63,209.51,37.27540642]
[1734553880056,3.81,209.63,209.51,38.60500642]
[1734553880249,40.21250642,209.73,209.51,41.59280642]
[1734553880454,0.39842,209.74,209.55,37.27540642]
[1734553880652,0.39842,209.74,209.59,37.27540642]
[1734553880855,0.39842,209.74,209.63,37.27540642]
[1734553881156,5.77159064,209.82,209.67,37.27540642]
[1734553881354,5.77159064,209.82,209.63,37.27540642]
[1734553881558,37.27540642,209.76,209.56,1.0]
[1734553881757,37.27540642,209.68,209.6,5.73779175]
[1734553881952,37.27540642,209.68,209.58,2.3869]
[1734553881953,37.27540642,209.64,209.41,3.0397]
[1734553882256,37.27540642,209.53,209.45,5.78331866]
[1734553882856,37.27540642,209.49,209.37,6.44146131]
[1734553883156,37.27540642,209.45,209.25,37.27540642]
[1734553883363,37.27540642,209.45,209.36,5.82971811]
[1734553883557,37.27540642,209.45,209.26,0.87768316]
[1734553883760,37.27540642,209.45,209.32,5.69911226]
[1734553883964,37.27540642,209.41,209.23,3.0397]
[1734553884164,37.27540642,209.41,209.21,37.27540642]
[1734553884361,37.27540642,209.37,209.27,5.7208799]
[1734553884561,37.27540642,209.41,209.27,5.7208799]
[1734553884765,37.27540642,209.45,209.31,2.39]
[1734553884964,43.46920642,209.5,209.29,37.27540642]
[1734553885261,37.27540642,209.46,209.27,5.7208799]
[1734553885464,37.27540642,209.42,209.27,5.7208799]
[1734553885668,37.27540642,209.46,209.29,37.27540642]
[1734553885964,3.1091,209.5,209.33,37.27540642]
[1734553886158,40.35840642,209.54,209.37,37.27540642]
[1734553886159,37.27540642,209.54,209.37,37.27540642]
[1734553886366,37.27540642,209.46,209.3,4.3694]
[1734553886663,37.27540642,209.42,209.25,37.27540642]
[1734553886859,37.27540642,209.46,209.31,5.66070859]
[1734553887064,37.27540642,209.55,209.31,5.66070859]
[1734553887065,37.27540642,209.5,209.31,5.66070859]
[1734553887768,37.27540642,209.46,209.31,5.66070859]
[1734553887973,2.3885,209.45,209.31,5.66070859]
[1734553888270,37.27540642,209.46,209.31,5.66070859]
[1734553888465,37.27540642,209.38,209.21,37.27540642]
[1734553888664,37.27540642,209.38,209.18,4.3694]
[1734553888867,37.27540642,209.38,209.19,0.87822634]
[1734553889066,37.27540642,209.38,209.18,4.3694]
[1734553889361,37.27540642,209.42,209.24,5.69960572]
[1734553889566,3.0426,209.45,209.25,37.27540642]
[1734553889765,3.0426,209.45,209.29,37.27540642]
[1734553890367,3.0426,209.45,209.25,37.27540642]
[1734553890571,3.0426,209.45,209.36,2.3895]
[1734553890878,3.0426,209.45,209.25,37.27540642]
[1734553891769,6.3038,209.54,209.34,37.27540642]
[1734553891970,37.27540642,209.55,209.34,37.27540642]
[1734553891971,37.27540642,209.59,209.42,37.27540642]
[1734553892573,37.27540642,209.71,209.5,37.27540642]
[1734553892768,2.9169,209.74,209.44,37.27540642]
[1734553892769,2.9169,209.74,209.54,37.27540642]
[1734553892973,37.27540642,209.71,209.54,37.27540642]
[1734553893172,37.27540642,209.67,209.48,54.62]
[1734553893365,37.27540642,209.67,209.49,0.87700576]
[1734553893566,37.27540642,209.59,209.45,5.84988213]
[1734553893771,37.27540642,209.5,209.3,37.27540642]
[1734553893969,37.27540642,209.46,209.36,5.68985496]
[1734553894369,37.27540642,209.46,209.27,54.62]
[1734553895377,37.27540642,209.46,209.31,5.73147871]
[1734553895667,5.9065,209.58,209.38,37.27540642]
[1734553895867,37.27540642,209.55,209.34,37.27540642]
[1734553896075,37.27540642,209.55,209.35,0.87760624]
[1734553896272,5.9065,209.58,209.39,37.27540642]
[1734553896475,3.0525,209.65,209.47,37.27540642]
[1734553896675,37.27540642,209.71,209.51,37.27540642]
[1734553896869,37.27540642,209.71,209.61,2.3866]
[1734553897070,42.91800277,209.71,209.51,37.27540642]
[1734553897473,3.1598,209.73,209.63,2.3864]
[1734553897675,3.0525,209.74,209.63,37.27540642]
[1734553897676,5.63055422,209.74,209.63,37.27540642]
[1734553898076,77.32119904,209.91,209.63,37.27540642]
[1734553898284,120.3123657,209.96,209.79,37.27540642]
[1734553898482,120.3123657,209.96,209.83,2.3841]
[1734553898684,37.27540642,209.94,209.75,37.27540642]
[1734553898888,37.27540642,209.94,209.79,5.73050089]
[1734553899185,37.27540642,209.9,209.66,37.27540642]
[1734553899577,37.27540642,209.9,209.78,2.3847]
[1734553899779,37.27540642,209.94,209.76,5.5942376]
[1734553899984,5.77802128,209.97,209.82,37.27540642]
[1734553900281,6.0421,209.98,209.9,2.3834]
[1734553900584,6.0421,209.98,209.82,37.27540642]
[1734553900887,37.27540642,209.97,209.83,5.60339816]
[1734553901082,2.9154,209.98,209.83,5.60339816]
[1734553901277,3.0903,210.0,209.83,5.60339816]
[1734553901485,3.1299,210.08,209.89,37.27540642]
[1734553901681,3.1299,210.08,209.93,37.27540642]
[1734553902081,3.1299,210.08,209.95,37.27540642]
[1734553902283,37.27540642,210.17,209.99,37.27540642]
[1734553902483,3.1299,210.19,210.04,37.27540642]
[1734553902985,37.27540642,210.12,209.96,5.83084275]
[1734553903285,37.27540642,210.04,209.82,37.27540642]
[1734553903588,37.27540642,209.96,209.83,0.87539381]
[1734553903785,37.27540642,209.96,209.76,6.44146131]
[1734553903786,37.27540642,209.92,209.76,6.44146131]
[1734553903978,37.27540642,209.96,209.8,5.68325545]
[1734553904485,37.27540642,209.96,209.84,2.384]
[1734553904684,37.27540642,209.96,209.8,5.68325545]
[1734553904885,37.27540642,210.0,209.81,37.27540642]
[1734553905189,9.0685,210.03,209.85,37.27540642]
[1734553905783,6.1217,210.03,209.89,37.27540642]
[1734553905987,2.9468,210.15,210.08,2.3813]
[1734553906187,2.9468,210.15,210.01,37.27540642]
[1734553906492,37.27540642,210.14,209.99,2.3823]
[1734553906692,37.27540642,210.14,209.93,37.27540642]
[1734553906693,40.36620642,210.14,209.93,37.27540642]
[1734553906890,37.27540642,210.06,209.89,37.27540642]
[1734553907193,37.27540642,210.06,209.97,5.81167014]
[1734553907383,37.27540642,210.06,209.85,37.27540642]
[1734553907583,3.0908,210.14,209.81,37.27540642]
[1734553907584,37.27540642,210.02,209.81,37.27540642]
[1734553907783,37.27540642,209.98,209.77,37.27540642]
[1734553907991,37.27540642,209.98,209.85,5.66730779]
[1734553907992,3.0908,209.97,209.85,5.66730779]
[1734553908188,37.27540642,209.94,209.73,37.27540642]
[1734553908493,3.0908,209.97,209.69,37.27540642]
[1734553908494,37.27540642,209.86,209.69,37.27540642]
[1734553908690,2.981,209.85,209.65,91.77540642]
[1734553908990,37.27540642,209.82,209.66,0.87620415]
[1734553909191,37.27540642,209.78,209.59,56.07144108]
[1734553909391,37.27540642,209.74,209.63,5.59181994]
[1734553909693,37.27540642,209.7,209.49,54.5]
[1734553909888,6.3947,209.69,209.58,2.3869]
[1734553910087,37.27540642,209.66,209.49,54.5]
[1734553910292,6.3947,209.69,209.49,54.5]
[1734553910489,37.27540642,209.66,209.43,37.27540642]
[1734553910790,37.27540642,209.58,209.32,193.2183559]
[1734553911094,37.27540642,209.58,209.41,5.75657612]
[1734553911895,6.8993,209.65,209.43,37.27540642]
[1734553912094,6.8993,209.65,209.41,5.75657612]
[1734553912390,6.8993,209.65,209.62,2.3865]
[1734553912989,6.8993,209.65,209.5,37.27540642]
[1734553913187,6.8993,209.65,209.54,37.27540642]
[1734553913385,3.81,209.65,209.63,2.3864]
[1734553913594,37.27540642,209.82,209.62,37.27540642]
[1734553913787,3.059,209.81,209.62,37.27540642]
[1734553913994,37.27540642,209.78,209.58,37.27540642]
[1734553914187,37.27540642,209.66,209.44,37.27540642]
[1734553914389,37.27540642,209.62,209.44,37.27540642]
[1734553914794,9.4657,209.65,209.44,37.27540642]
[1734553914994,9.4657,209.65,209.49,5.67146645]
[1734553915192,9.4657,209.65,209.53,37.27540642]
[1734553915392,6.2498,209.65,209.53,37.27540642]
[1734553915594,37.27540642,209.78,209.57,37.27540642]
[1734553915794,5.79916607,209.74,209.57,37.27540642]
[1734553915994,37.27540642,209.7,209.49,42.94687287]
[1734553916191,37.27540642,209.66,209.49,5.67146645]
[1734553916596,3.1259,209.69,209.52,37.27540642]
[1734553916894,2.9312,209.73,209.61,37.27540642]
[1734553917094,2.9312,209.73,209.56,37.27540642]
[1734553917095,3.1259,209.87,209.69,37.27540642]
[1734553917301,6.0558,209.94,209.9,2.3835]
[1734553917494,6.0558,209.94,209.79,37.27540642]
[1734553918198,6.0558,209.94,209.77,37.27540642]
[1734553918392,14.25,210.22,209.85,37.27540642]
[1734553918593,3.0005,210.09,209.94,37.27540642]
[1734553918999,3.0005,210.09,209.9,37.27540642]
[1734553919399,37.27540642,210.08,209.86,37.27540642]
[1734553919899,3.0005,210.09,209.9,43.06994138]
[1734553920099,3.0005,210.09,209.94,37.27540642]
[1734553920696,37.27540642,210.08,209.9,5.79453496]
[1734553920901,37.27540642,210.08,209.91,37.27540642]
[1734553921195,37.27540642,210.08,209.9,5.79453496]
[1734553921399,37.27540642,210.04,209.87,37.27540642]
[1734553921600,6.2202,210.03,209.87,37.27540642]
[1734553921793,37.27540642,209.95,209.66,37.27540642]
[1734553922001,37.27540642,209.86,209.64,37.27540642]
[1734553922204,37.27540642,209.82,209.67,0.87601568]
[1734553922404,37.27540642,209.82,209.6,37.27540642]
[1734553922703,37.27540642,209.78,209.57,54.52]
[1734553922904,37.27540642,209.7,209.51,37.27540642]
[1734553923102,9.2148,209.85,209.41,215.5152965]
[1734553923103,37.27540642,209.68,209.47,37.27540642]
[1734553923303,3.0171,209.69,209.51,37.27540642]
[1734553923598,3.0171,209.69,209.55,37.27540642]
[1734553923798,3.0171,209.69,209.59,37.27540642]
[1734553924004,3.0171,209.69,209.54,5.67377748]
[1734553924205,6.1977,209.68,209.54,5.67377748]
[1734553924395,6.1977,209.68,209.44,37.27540642]
[1734553924702,6.1977,209.68,209.53,5.71845046]
[1734553925699,37.27540642,209.89,209.64,37.27540642]
[1734553925903,5.9544,209.87,209.73,37.27540642]
[1734553926104,5.9544,209.87,209.54,3.44597807]
[1734553926105,5.9544,209.87,209.65,2.3864]
[1734553926305,5.9544,209.87,209.59,37.27540642]
[1734553926306,37.27540642,209.81,209.59,37.27540642]
[1734553926602,37.27540642,209.81,209.7,2.3858]
[1734553926800,37.27540642,209.77,209.55,91.79540642]
[1734553926994,37.27540642,209.81,209.62,37.27540642]
[1734553927201,37.27540642,209.77,209.64,5.66442164]
[1734553927402,37.27540642,209.69,209.6,5.7159424]
[1734553927605,37.27540642,209.81,209.62,37.27540642]
[1734553927800,2.9236,209.87,209.7,37.27540642]
[1734553928002,2.9236,209.87,209.6,5.7159424]
[1734553928003,37.27540642,209.98,209.79,37.27540642]
[1734553928199,37.27540642,209.98,209.84,2.3842]
[1734553928394,37.27540642,209.98,209.66,37.27540642]
[1734553928395,43.03771751,209.98,209.75,37.27540642]
[1734553928608,6.1818,210.01,209.84,37.27540642]
[1734553928912,3.0441,210.01,209.84,43.01997147]
[1734553929199,3.0441,210.01,209.84,5.74456505]
[1734553929600,37.27540642,209.93,209.73,37.27540642]
[1734553929803,37.27540642,209.81,209.61,37.27540642]
[1734553930000,37.27540642,209.88,209.55,114.57294221]
[1734553930001,37.27540642,209.77,209.55,114.57294221]
[1734553930200,37.27540642,209.77,209.62,5.72681901]
[1734553930401,6.1662,209.8,209.76,2.3851]
[1734553930605,6.1662,209.8,209.62,5.72681901]
[1734553930606,3.1377,209.87,209.67,37.27540642]
[1734553930803,37.27540642,209.89,209.72,37.27540642]
[1734553931097,6.2892,209.97,209.8,37.27540642]
[1734553931305,37.27540642,210.06,209.88,37.27540642]
[1734553931605,37.27540642,210.06,209.77,37.27540642]
[1734553931606,37.27540642,210.06,209.84,37.27540642]
[1734553931803,37.27540642,209.98,209.8,37.27540642]
[1734553932107,37.27540642,209.94,209.75,37.27540642]
[1734553932309,37.27540642,209.86,209.67,37.27540642]
[1734553932504,37.27540642,209.92,209.75,5.78894644]
[1734553932905,37.27540642,209.92,209.75,43.06435286]
[1734553933104,37.27540642,210.01,209.96,2.3829]
[1734553933305,37.27540642,210.01,209.77,37.27540642]
[1734553933604,37.27540642,209.93,209.86,2.384]
[1734553933904,37.27540642,209.9,209.75,5.78894644]
[1734553934208,37.27540642,209.86,209.65,91.79540642]
[1734553934510,37.27540642,209.7,209.57,25.76584525]
[1734553934704,37.27540642,209.7,209.57,28.15314525]
[1734553934904,37.27540642,209.7,209.49,43.71686773]
[1734553935210,37.27540642,209.62,209.51,5.61910263]
[1734553935399,37.27540642,209.66,209.51,5.61910263]
[1734553935899,37.27540642,209.62,209.51,5.61910263]
[1734553936302,37.27540642,209.66,209.51,5.61910263]
[1734553937103,9.1574,209.73,209.53,37.27540642]
[1734553937602,6.1253,209.73,209.57,37.27540642]
[1734553937807,40.20090642,209.82,209.61,37.27540642]
[1734553938102,40.20090642,209.82,209.53,37.27540642]
[1734553938103,37.27540642,209.74,209.53,37.27540642]
[1734553938304,37.27540642,209.66,209.49,37.27540642]
[1734553938506,37.27540642,209.7,209.56,5.81998876]
[1734553938707,2.9255,209.69,209.56,5.81998876]
[1734553938904,37.27540642,209.66,209.56,5.81998876]
[1734553939409,2.9255,209.69,209.56,5.81998876]
[1734553939607,37.27540642,209.74,209.56,5.81998876]
[1734553939803,37.27540642,209.9,209.67,37.27540642]
[1734553940002,37.27540642,209.94,209.85,2.3841]
[1734553940312,120.3123657,209.95,209.75,37.27540642]
[1734553940507,9.237,209.97,209.75,37.27540642]
[1734553940705,37.27540642,209.96,209.83,5.71122987]
[1734553941112,6.1251,209.97,209.93,2.3832]
[1734553941406,3.1119,210.09,209.91,37.27540642]
[1734553941607,6.3255,210.09,209.98,2.3826]
[1734553941802,6.3255,210.09,209.91,37.27540642]
[1734553942004,6.3255,210.09,209.95,37.27540642]
[1734553942209,40.18690642,210.17,209.99,37.27540642]
[1734553942513,40.18690642,210.17,209.97,5.63284493]
[1734553942706,2.9115,210.17,210.03,37.27540642]
[1734553942909,2.9115,210.17,210.07,2.3816]
[1734553943106,2.9115,210.17,210.03,37.27540642]
[1734553943307,3.2136,210.2,210.12,2.381]
[1734553943510,3.2136,210.2,210.03,37.27540642]
[1734553943713,40.36380642,210.3,210.11,37.27540642]
[1734553943911,40.36380642,210.3,210.2,2.3801]
[1734553944112,40.36380642,210.3,210.13,5.58651155]
[1734553944711,3.0884,210.3,210.15,37.27540642]
[1734553944912,37.27540642,210.36,210.15,37.27540642]
[1734553945113,37.27540642,210.4,210.23,37.27540642]
[1734553945307,9.5141,210.42,210.23,37.27540642]
[1734553945614,37.27540642,210.4,210.21,37.27540642]
[1734553946410,37.27540642,210.4,210.17,37.27540642]
[1734553946607,37.27540642,210.36,210.17,37.27540642]
[1734553946807,37.27540642,210.32,210.13,37.27540642]
[1734553947006,37.27540642,210.32,210.22,5.60651913]
[1734553947212,37.27540642,210.4,210.22,5.60651913]
[1734553947412,9.5141,210.42,210.25,37.27540642]
[1734553947908,6.3013,210.42,210.25,37.27540642]
[1734553948104,5.73041064,210.5,210.29,37.27540642]
[1734553948312,9.1254,210.53,210.33,37.27540642]
[1734553948516,9.1254,210.53,210.29,37.27540642]
[1734553948708,9.1254,210.53,210.38,5.68245264]
[1734553949110,37.27540642,210.5,210.38,5.68245264]
[1734553949418,37.27540642,210.46,210.28,37.27540642]
[1734553949613,37.27540642,210.5,210.32,37.27540642]
[1734553949815,3.0037,210.53,210.4,37.27540642]
[1734553950015,37.27540642,210.63,210.51,2.3766]
[1734553950214,37.27540642,210.59,210.4,37.27540642]
[1734553950821,9.2807,210.64,210.44,37.27540642]
[1734553951214,9.2807,210.64,210.47,5.57303907]
[1734553951816,37.27540642,210.48,210.28,37.27540642]
[1734553952017,6.1169,210.47,210.29,0.87360947]
[1734553952213,39.65300642,210.44,210.29,2.3791]
[1734553952418,37.27540642,210.4,210.2,37.27540642]
[1734553952617,6.1169,210.47,210.29,5.60271325]
[1734553952816,3.1971,210.47,210.42,2.3777]
[1734553953119,37.27540642,210.58,210.4,37.27540642]
[1734553953422,37.27540642,210.62,210.44,37.27540642]
[1734553954120,37.27540642,210.62,210.4,37.27540642]
[1734553954316,37.27540642,210.62,210.46,2.3772]
[1734553954623,37.27540642,210.62,210.47,5.58429395]
[1734553954818,2.3761,210.56,210.41,2.3778]
[1734553955026,37.27540642,210.58,210.44,5.70524515]
[1734553955421,5.62366014,210.63,210.44,5.70524515]
[1734553955725,9.1915,210.64,210.44,42.98065157]
[1734553955926,37.27540642,210.57,210.44,5.70524515]
[1734553956119,37.27540642,210.49,210.31,37.27540642]
[1734553956315,37.27540642,210.45,210.33,5.75425831]
[1734553956522,5.8159,210.48,210.33,5.75425831]
[1734553956924,37.27540642,210.45,210.24,37.27540642]
[1734553957223,37.27540642,210.45,209.99,37.27540642]
[1734553957224,37.27540642,210.33,210.15,37.27540642]
[1734553957421,5.8159,210.32,210.2,5.79819266]
[1734553957624,5.8159,210.32,210.17,37.27540642]
[1734553957824,5.8159,210.32,210.19,5.60305569]
[1734553958018,5.8159,210.32,210.04,1.2146]
[1734553958019,5.8159,210.32,210.13,37.27540642]
[1734553958225,37.27540642,210.29,210.09,37.27540642]
[1734553958421,5.8159,210.32,210.13,37.27540642]
[1734553958726,5.8159,210.32,210.16,5.69434784]
[1734553958928,5.8159,210.32,210.17,37.27540642]
[1734553959124,5.8159,210.32,210.24,2.3797]
[1734553959523,5.8159,210.32,210.19,2.3802]
[1734553959725,5.8159,210.32,210.18,37.27540642]
[1734553959921,77.10165533,210.5,210.22,37.27540642]
[1734553960123,43.00804924,210.4,210.22,37.27540642]
[1734553960326,37.27540642,210.32,210.16,5.69434784]
[1734553961116,37.27540642,210.28,210.12,37.27540642]
[1734553961317,37.27540642,210.28,210.08,37.27540642]
[1734553961526,37.27540642,210.14,209.95,37.27540642]
[1734553961727,37.27540642,210.1,209.91,37.27540642]
[1734553962028,6.1361,210.13,209.99,5.75148705]
[1734553962226,3.8,210.09,209.99,5.75148705]
[1734553962617,3.8,210.09,209.89,54.4]
[1734553962819,3.8,210.09,209.94,37.27540642]
[1734553963021,3.8,210.09,209.96,5.58047502]
[1734553963219,3.8,210.09,209.98,37.50487642]
[1734553964028,3.8,210.09,210.07,2.3817]
[1734553964327,3.8,210.09,209.98,0.22947]
[1734553964529,3.8,210.09,209.98,37.50487642]
[1734553965126,3.8,210.09,210.0,37.27540642]
[1734553965317,3.8,210.09,209.96,42.85588144]
[1734553965522,3.8,210.09,209.96,5.58047502]
[1734553966028,3.8,210.09,209.96,42.85588144]
[1734553966329,37.27540642,210.29,210.08,37.27540642]
[1734553966530,37.27540642,210.37,210.16,37.27540642]
[1734553966732,37.27540642,210.27,210.0,1.3236]
[1734553966932,37.27540642,210.19,210.07,5.7431705]
[1734553967135,37.27540642,210.1,209.88,37.27540642]
[1734553967429,37.27540642,210.15,209.96,43.11348646]